[Event "Titled Tuesday Blitz August 24 2021"]
[White "Jarovinsky, Alexey"]
[Black "Pein, Jonathan"]
[WhiteFideId "14115131"]
[BlackFideId "417092"]
[WhiteElo "2446"]
[BlackElo "2167"]
[Result "1-0"]
[Round "01"]
[TimeControl "180+1"]
[Date "2021.08.24"]
[WhiteClock "0:00:09"]
[BlackClock "0:00:03"]

1. Nc3 {[%clk 0:03:00]}  c5 {[%clk 0:02:55]} 2. e4 {[%clk 0:02:56]}  g6 {[%clk 0:02:54]} 3. g3 {[%clk 0:02:48]}  Bg7 {[%clk 0:02:54]} 4. Bg2 {[%clk 0:02:48]}  Nc6 {[%clk 0:02:54]} 5. d3 {[%clk 0:02:49]}  e5 {[%clk 0:02:51]} 6. f4 {[%clk 0:02:45]}  Nge7 {[%clk 0:02:50]} 7. Nf3 {[%clk 0:02:35]}  O-O {[%clk 0:02:48]} 8. O-O {[%clk 0:02:33]}  d6 {[%clk 0:02:48]} 9. h3 {[%clk 0:02:17]}  f5 {[%clk 0:02:45]} 10. Be3 {[%clk 0:02:07]}  Nd4 {[%clk 0:02:43]} 11. Qd2 {[%clk 0:02:05]}  Rb8 {[%clk 0:02:27]} 12. fxe5 {[%clk 0:01:46]}  dxe5 {[%clk 0:02:17]} 13. Bh6 {[%clk 0:01:43]}  Nec6 {[%clk 0:01:51]} 14. Bxg7 {[%clk 0:01:40]}  Kxg7 {[%clk 0:01:52]} 15. exf5 {[%clk 0:01:33]}  gxf5 {[%clk 0:01:13]} 16. Rae1 {[%clk 0:01:28]}  Nxf3+ {[%clk 0:01:02]} 17. Bxf3 {[%clk 0:01:27]}  Qf6 {[%clk 0:00:50]} 18. Kh2 {[%clk 0:01:09]}  Be6 {[%clk 0:00:50]} 19. b3 {[%clk 0:00:44]}  Rbe8 {[%clk 0:00:49]} 20. Bg2 {[%clk 0:00:36]}  h6 {[%clk 0:00:43]} 21. Rf2 {[%clk 0:00:26]}  Re7 {[%clk 0:00:23]} 22. Bxc6 {[%clk 0:00:22]}  bxc6 {[%clk 0:00:23]} 23. Qe3 {[%clk 0:00:20]}  f4 {[%clk 0:00:20]} 24. Qxe5 {[%clk 0:00:17]}  fxg3+ {[%clk 0:00:17]} 25. Qxg3+ {[%clk 0:00:16]}  Qg5 {[%clk 0:00:16]} 26. Qxg5+ {[%clk 0:00:16]}  hxg5 {[%clk 0:00:17]} 27. Rxf8 {[%clk 0:00:15]}  Kxf8 {[%clk 0:00:18]} 28. Re5 {[%clk 0:00:14]}  g4 {[%clk 0:00:09]} 29. h4 {[%clk 0:00:11]}  Ke8 {[%clk 0:00:07]} 30. Ne4 {[%clk 0:00:11]}  Kd7 {[%clk 0:00:03]} 31. Nxc5+ {[%clk 0:00:09]} 1-0


[Site "https://www.chess.com"]

[Event "Titled Tuesday Blitz August 24 2021"]
[White "Kaminski, Victor"]
[Black "Ozen, Bahadir"]
[WhiteFideId "1131630"]
[BlackFideId "6337058"]
[WhiteElo "2181"]
[BlackElo "2503"]
[Result "0-1"]
[Round "01"]
[TimeControl "180+1"]
[Date "2021.08.24"]
[WhiteClock "0:00:03"]
[BlackClock "0:01:42"]

1. d4 {[%clk 0:02:54]}  d5 {[%clk 0:02:56]} 2. c4 {[%clk 0:02:52]}  dxc4 {[%clk 0:02:57]} 3. e3 {[%clk 0:02:47]}  Nf6 {[%clk 0:02:56]} 4. Bxc4 {[%clk 0:02:41]}  e6 {[%clk 0:02:56]} 5. Nf3 {[%clk 0:02:40]}  c5 {[%clk 0:02:56]} 6. O-O {[%clk 0:02:36]}  a6 {[%clk 0:02:56]} 7. Qe2 {[%clk 0:02:33]}  b5 {[%clk 0:02:50]} 8. Bb3 {[%clk 0:02:31]}  Bb7 {[%clk 0:02:49]} 9. Nc3 {[%clk 0:01:59]}  Nbd7 {[%clk 0:02:44]} 10. dxc5 {[%clk 0:01:50]}  Nxc5 {[%clk 0:02:43]} 11. Rd1 {[%clk 0:01:50]}  Qb6 {[%clk 0:02:42]} 12. Bc2 {[%clk 0:01:45]}  b4 {[%clk 0:02:25]} 13. Na4 {[%clk 0:01:40]}  Qb5 {[%clk 0:02:24]} 14. Qxb5+ {[%clk 0:01:22]}  axb5 {[%clk 0:02:25]} 15. Nxc5 {[%clk 0:01:23]}  Bxc5 {[%clk 0:02:25]} 16. Bd3 {[%clk 0:01:23]}  Ra5 {[%clk 0:02:16]} 17. Nd2 {[%clk 0:01:10]}  Bd5 {[%clk 0:02:06]} 18. e4 {[%clk 0:00:54]}  Rxa2 {[%clk 0:02:06]} 19. Rxa2 {[%clk 0:00:46]}  Bxa2 {[%clk 0:02:07]} 20. b3 {[%clk 0:00:47]}  Ng4 {[%clk 0:02:00]} 21. Bxb5+ {[%clk 0:00:37]}  Ke7 {[%clk 0:02:01]} 22. Rf1 {[%clk 0:00:32]}  Rc8 {[%clk 0:01:59]} 23. Bc4 {[%clk 0:00:28]}  Rd8 {[%clk 0:01:53]} 24. h3 {[%clk 0:00:27]}  Ne5 {[%clk 0:01:51]} 25. g3 {[%clk 0:00:18]}  Rxd2 {[%clk 0:01:41]} 26. Bxd2 {[%clk 0:00:18]}  Nf3+ {[%clk 0:01:42]} 27. Kg2 {[%clk 0:00:16]}  Nxd2 {[%clk 0:01:43]} 28. Rc1 {[%clk 0:00:03]}  Nxc4 {[%clk 0:01:42]} 29. Rxc4 {[%clk 0:00:03]}  Kd6 {[%clk 0:01:42]} 30. e5+ {[%clk 0:00:03]}  Kd5 {[%clk 0:01:42]} 31. Rf4 {[%clk 0:00:03]}  Bxb3 {[%clk 0:01:42]} 32. Rxf7 {[%clk 0:00:04]}  Bc2 {[%clk 0:01:42]} 33. Rxg7 {[%clk 0:00:04]}  b3 {[%clk 0:01:43]} 34. Rb7 {[%clk 0:00:03]}  Kc6 {[%clk 0:01:42]} 35. Rb8 {[%clk 0:00:03]}  Bb6 {[%clk 0:01:42]} 0-1


[Site "https://www.chess.com"]

[Event "Titled Tuesday Blitz August 24 2021"]
[White "Kholin, Aleksandr"]
[Black "Ter-Sahakyan, Samvel"]
[WhiteFideId "14202190"]
[BlackFideId "13302531"]
[WhiteElo "2430"]
[BlackElo "2551"]
[Result "1-0"]
[Round "01"]
[TimeControl "180+1"]
[Date "2021.08.24"]
[WhiteClock "0:00:29"]
[BlackClock "0:01:43"]

1. e4 {[%clk 0:03:00]}  e6 {[%clk 0:02:57]} 2. d4 {[%clk 0:02:59]}  d5 {[%clk 0:02:58]} 3. Nd2 {[%clk 0:02:58]}  c5 {[%clk 0:02:56]} 4. Ngf3 {[%clk 0:02:58]}  cxd4 {[%clk 0:02:56]} 5. exd5 {[%clk 0:02:57]}  Qxd5 {[%clk 0:02:55]} 6. Bc4 {[%clk 0:02:56]}  Qd6 {[%clk 0:02:53]} 7. O-O {[%clk 0:02:56]}  Nf6 {[%clk 0:02:52]} 8. Nb3 {[%clk 0:02:56]}  Nc6 {[%clk 0:02:52]} 9. Nbxd4 {[%clk 0:02:49]}  Nxd4 {[%clk 0:02:53]} 10. Nxd4 {[%clk 0:02:44]}  Be7 {[%clk 0:02:52]} 11. Nb5 {[%clk 0:02:38]}  Qc6 {[%clk 0:02:44]} 12. Bd3 {[%clk 0:02:31]}  O-O {[%clk 0:02:43]} 13. Bf4 {[%clk 0:02:26]}  a6 {[%clk 0:02:42]} 14. Nd4 {[%clk 0:02:21]}  Qb6 {[%clk 0:02:42]} 15. Nb3 {[%clk 0:02:11]}  Bd7 {[%clk 0:02:41]} 16. Qe2 {[%clk 0:02:06]}  a5 {[%clk 0:02:35]} 17. a4 {[%clk 0:01:59]}  Bc6 {[%clk 0:02:36]} 18. Be3 {[%clk 0:01:52]}  Qc7 {[%clk 0:02:33]} 19. Nd4 {[%clk 0:01:51]}  Nd5 {[%clk 0:02:22]} 20. Nb5 {[%clk 0:01:45]}  Bxb5 {[%clk 0:02:21]} 21. axb5 {[%clk 0:01:38]}  Nxe3 {[%clk 0:02:21]} 22. Qxe3 {[%clk 0:01:37]}  Bc5 {[%clk 0:02:16]} 23. Qh3 {[%clk 0:01:34]}  g6 {[%clk 0:02:15]} 24. Rad1 {[%clk 0:01:27]}  Rad8 {[%clk 0:02:13]} 25. Qf3 {[%clk 0:01:16]}  b6 {[%clk 0:02:11]} 26. c3 {[%clk 0:01:11]}  Rd6 {[%clk 0:02:08]} 27. Be4 {[%clk 0:01:10]}  Rfd8 {[%clk 0:02:07]} 28. Bc6 {[%clk 0:01:00]}  Bxf2+ {[%clk 0:01:59]} 29. Kxf2 {[%clk 0:00:55]}  Rxd1 {[%clk 0:01:50]} 30. Rxd1 {[%clk 0:00:54]}  Rxd1 {[%clk 0:01:50]} 31. Qxd1 {[%clk 0:00:53]}  Qxh2 {[%clk 0:01:51]} 32. Qd8+ {[%clk 0:00:50]}  Kg7 {[%clk 0:01:51]} 33. Qd4+ {[%clk 0:00:44]}  e5 {[%clk 0:01:50]} 34. Qxb6 {[%clk 0:00:42]}  Qf4+ {[%clk 0:01:50]} 35. Ke2 {[%clk 0:00:39]}  Qc4+ {[%clk 0:01:50]} 36. Kd2 {[%clk 0:00:34]}  Qb3 {[%clk 0:01:44]} 37. Kc1 {[%clk 0:00:31]}  a4 {[%clk 0:01:43]} 38. Qc5 {[%clk 0:00:29]} 1-0


[Site "https://www.chess.com"]

[Event "Titled Tuesday Blitz August 24 2021"]
[White "Kim, Sergey"]
[Black "Bok, Benjamin"]
[WhiteFideId "13700570"]
[BlackFideId "1017063"]
[WhiteElo "2470"]
[BlackElo "2658"]
[Result "0-1"]
[Round "01"]
[TimeControl "180+1"]
[Date "2021.08.24"]
[WhiteClock "0:00:01"]
[BlackClock "0:00:05"]

1. d4 {[%clk 0:03:00]}  Nf6 {[%clk 0:02:59]} 2. c4 {[%clk 0:02:58]}  e6 {[%clk 0:02:59]} 3. Nc3 {[%clk 0:02:58]}  Bb4 {[%clk 0:02:59]} 4. Qc2 {[%clk 0:02:58]}  O-O {[%clk 0:02:56]} 5. a3 {[%clk 0:02:58]}  Bxc3+ {[%clk 0:02:55]} 6. Qxc3 {[%clk 0:02:58]}  d6 {[%clk 0:02:54]} 7. Nf3 {[%clk 0:02:58]}  Nbd7 {[%clk 0:02:53]} 8. g3 {[%clk 0:02:58]}  b6 {[%clk 0:02:52]} 9. Bg2 {[%clk 0:02:57]}  Bb7 {[%clk 0:02:52]} 10. O-O {[%clk 0:02:57]}  Qe7 {[%clk 0:02:48]} 11. b3 {[%clk 0:02:56]}  e5 {[%clk 0:02:45]} 12. d5 {[%clk 0:02:56]}  a5 {[%clk 0:02:34]} 13. Nd2 {[%clk 0:02:54]}  Rfc8 {[%clk 0:02:07]} 14. Bb2 {[%clk 0:02:29]}  c6 {[%clk 0:02:03]} 15. dxc6 {[%clk 0:02:29]}  Bxc6 {[%clk 0:02:04]} 16. e4 {[%clk 0:02:28]}  Nc5 {[%clk 0:01:43]} 17. Qe3 {[%clk 0:02:21]}  Qb7 {[%clk 0:01:34]} 18. f3 {[%clk 0:02:19]}  b5 {[%clk 0:01:31]} 19. Rab1 {[%clk 0:02:12]}  h6 {[%clk 0:01:26]} 20. Rfc1 {[%clk 0:02:04]}  b4 {[%clk 0:01:25]} 21. a4 {[%clk 0:02:03]}  Ne6 {[%clk 0:01:21]} 22. Bh3 {[%clk 0:01:58]}  Bd7 {[%clk 0:01:17]} 23. Bg2 {[%clk 0:01:51]}  Nc5 {[%clk 0:01:14]} 24. Rd1 {[%clk 0:01:41]}  Be6 {[%clk 0:01:14]} 25. Nf1 {[%clk 0:01:40]}  Rc6 {[%clk 0:01:07]} 26. Rd2 {[%clk 0:01:40]}  Qb6 {[%clk 0:01:07]} 27. Rbd1 {[%clk 0:01:39]}  Nxb3 {[%clk 0:01:02]} 28. Qxb6 {[%clk 0:01:33]}  Rxb6 {[%clk 0:01:03]} 29. Rxd6 {[%clk 0:01:33]}  Rxd6 {[%clk 0:01:04]} 30. Rxd6 {[%clk 0:01:32]}  Nc5 {[%clk 0:00:56]} 31. Bxe5 {[%clk 0:01:28]}  Nxa4 {[%clk 0:00:56]} 32. Ne3 {[%clk 0:01:21]}  Nc5 {[%clk 0:00:40]} 33. Rb6 {[%clk 0:01:13]}  Nfd7 {[%clk 0:00:35]} 34. Rb5 {[%clk 0:01:11]}  Nxe5 {[%clk 0:00:35]} 35. Rxc5 {[%clk 0:01:11]}  Nd3 {[%clk 0:00:20]} 36. Rb5 {[%clk 0:01:09]}  a4 {[%clk 0:00:18]} 37. Bf1 {[%clk 0:01:06]}  Rd8 {[%clk 0:00:16]} 38. Nd5 {[%clk 0:01:02]}  Ne5 {[%clk 0:00:12]} 39. Rxb4 {[%clk 0:01:00]}  Nxf3+ {[%clk 0:00:11]} 40. Kf2 {[%clk 0:00:57]}  Ng5 {[%clk 0:00:11]} 41. Bd3 {[%clk 0:00:52]}  Ra8 {[%clk 0:00:10]} 42. Nb6 {[%clk 0:00:50]}  Ra5 {[%clk 0:00:10]} 43. Rxa4 {[%clk 0:00:49]}  Re5 {[%clk 0:00:10]} 44. Ke3 {[%clk 0:00:47]}  f6 {[%clk 0:00:09]} 45. h4 {[%clk 0:00:46]}  Nxe4 {[%clk 0:00:09]} 46. Bxe4 {[%clk 0:00:45]}  Bf5 {[%clk 0:00:09]} 47. c5 {[%clk 0:00:41]}  Bxe4 {[%clk 0:00:10]} 48. Rxe4 {[%clk 0:00:40]}  Rxc5 {[%clk 0:00:10]} 49. Nc4 {[%clk 0:00:41]}  Kh7 {[%clk 0:00:10]} 50. Nd6 {[%clk 0:00:40]}  Rc3+ {[%clk 0:00:10]} 51. Kf2 {[%clk 0:00:39]}  h5 {[%clk 0:00:10]} 52. Nf5 {[%clk 0:00:38]}  Kg6 {[%clk 0:00:11]} 53. Ne3 {[%clk 0:00:38]}  Ra3 {[%clk 0:00:10]} 54. Rc4 {[%clk 0:00:38]}  Ra2+ {[%clk 0:00:10]} 55. Rc2 {[%clk 0:00:38]}  Ra3 {[%clk 0:00:11]} 56. Kf3 {[%clk 0:00:37]}  Rb3 {[%clk 0:00:11]} 57. Kf4 {[%clk 0:00:37]}  Rb4+ {[%clk 0:00:11]} 58. Rc4 {[%clk 0:00:37]}  Rb1 {[%clk 0:00:12]} 59. Nf5 {[%clk 0:00:34]}  Rf1+ {[%clk 0:00:11]} 60. Ke4 {[%clk 0:00:34]}  Rxf5 {[%clk 0:00:12]} 61. Rc3 {[%clk 0:00:33]}  Rf1 {[%clk 0:00:12]} 62. Rd3 {[%clk 0:00:32]}  Kh6 {[%clk 0:00:12]} 63. Rd8 {[%clk 0:00:30]}  Kh7 {[%clk 0:00:11]} 64. Rd3 {[%clk 0:00:28]}  Kg6 {[%clk 0:00:11]} 65. Rd8 {[%clk 0:00:26]}  Rf2 {[%clk 0:00:08]} 66. Ke3 {[%clk 0:00:25]}  Rf5 {[%clk 0:00:07]} 67. Ke4 {[%clk 0:00:24]}  Rf2 {[%clk 0:00:06]} 68. Ke3 {[%clk 0:00:24]}  Rg2 {[%clk 0:00:05]} 69. Kf3 {[%clk 0:00:24]}  Ra2 {[%clk 0:00:06]} 70. Rd5 {[%clk 0:00:22]}  Ra3+ {[%clk 0:00:06]} 71. Kf4 {[%clk 0:00:22]}  Ra4+ {[%clk 0:00:06]} 72. Kf3 {[%clk 0:00:21]}  Ra7 {[%clk 0:00:07]} 73. Kf4 {[%clk 0:00:21]}  Rb7 {[%clk 0:00:07]} 74. Kf3 {[%clk 0:00:21]}  Rb4 {[%clk 0:00:07]} 75. Rc5 {[%clk 0:00:20]}  Rb7 {[%clk 0:00:06]} 76. Rd5 {[%clk 0:00:20]}  Kh6 {[%clk 0:00:07]} 77. Rc5 {[%clk 0:00:20]}  Rb6 {[%clk 0:00:07]} 78. Kf4 {[%clk 0:00:19]}  g6 {[%clk 0:00:07]} 79. Rd5 {[%clk 0:00:18]}  Rb7 {[%clk 0:00:07]} 80. Rc5 {[%clk 0:00:18]}  Kg7 {[%clk 0:00:07]} 81. Rd5 {[%clk 0:00:17]}  Kf7 {[%clk 0:00:07]} 82. Ra5 {[%clk 0:00:17]}  Rd7 {[%clk 0:00:07]} 83. Rb5 {[%clk 0:00:17]}  Ke6 {[%clk 0:00:08]} 84. Rb6+ {[%clk 0:00:16]}  Rd6 {[%clk 0:00:08]} 85. Rb5 {[%clk 0:00:16]}  Rd4+ {[%clk 0:00:08]} 86. Ke3 {[%clk 0:00:15]}  Rd5 {[%clk 0:00:09]} 87. Rb7 {[%clk 0:00:14]}  Kf5 {[%clk 0:00:09]} 88. Kf3 {[%clk 0:00:14]}  Rd3+ {[%clk 0:00:10]} 89. Kf2 {[%clk 0:00:14]}  Kg4 {[%clk 0:00:09]} 90. Rb4+ {[%clk 0:00:13]}  Kh3 {[%clk 0:00:10]} 91. Rf4 {[%clk 0:00:13]}  Rxg3 {[%clk 0:00:10]} 92. Rxf6 {[%clk 0:00:12]}  Kxh4 {[%clk 0:00:09]} 93. Rf4+ {[%clk 0:00:12]}  Rg4 {[%clk 0:00:10]} 94. Rf3 {[%clk 0:00:10]}  g5 {[%clk 0:00:10]} 95. Re3 {[%clk 0:00:10]}  Rf4+ {[%clk 0:00:10]} 96. Kg2 {[%clk 0:00:10]}  g4 {[%clk 0:00:10]} 97. Re5 {[%clk 0:00:09]}  Ra4 {[%clk 0:00:10]} 98. Re2 {[%clk 0:00:08]}  Ra3 {[%clk 0:00:10]} 99. Rd2 {[%clk 0:00:08]}  Rb3 {[%clk 0:00:09]} 100. Kh2 {[%clk 0:00:07]}  Rb5 {[%clk 0:00:08]} 101. Kg2 {[%clk 0:00:07]}  Kg5 {[%clk 0:00:09]} 102. Rd8 {[%clk 0:00:05]}  Rb2+ {[%clk 0:00:07]} 103. Kg1 {[%clk 0:00:05]}  h4 {[%clk 0:00:07]} 104. Rg8+ {[%clk 0:00:04]}  Kf4 {[%clk 0:00:07]} 105. Rd8 {[%clk 0:00:04]}  h3 {[%clk 0:00:07]} 106. Rd3 {[%clk 0:00:03]}  Kg5 {[%clk 0:00:07]} 107. Rd1 {[%clk 0:00:01]}  Kh4 {[%clk 0:00:07]} 108. Kh1 {[%clk 0:00:02]}  Rb3 {[%clk 0:00:07]} 109. Rc1 {[%clk 0:00:02]}  Kg3 {[%clk 0:00:07]} 110. Rd1 {[%clk 0:00:02]}  Rb2 {[%clk 0:00:06]} 111. Rg1+ {[%clk 0:00:01]}  Kh4 {[%clk 0:00:06]} 112. Rf1 {[%clk 0:00:02]}  g3 {[%clk 0:00:06]} 113. Rf4+ {[%clk 0:00:02]}  Kg5 {[%clk 0:00:06]} 114. Re4 {[%clk 0:00:01]}  Rb1+ {[%clk 0:00:05]} 0-1


[Site "https://www.chess.com"]

[Event "Titled Tuesday Blitz August 24 2021"]
[White "Krasilnikov, Evgeni"]
[Black "Holt, Conrad"]
[WhiteFideId "4139739"]
[BlackFideId "2034387"]
[WhiteElo "2295"]
[BlackElo "2586"]
[Result "0-1"]
[Round "01"]
[TimeControl "180+1"]
[Date "2021.08.24"]
[WhiteClock "0:00:04"]
[BlackClock "0:00:08"]

1. e4 {[%clk 0:03:00]}  e6 {[%clk 0:02:56]} 2. d4 {[%clk 0:02:59]}  d5 {[%clk 0:02:56]} 3. exd5 {[%clk 0:02:59]}  exd5 {[%clk 0:02:56]} 4. Nf3 {[%clk 0:02:59]}  Bd6 {[%clk 0:02:54]} 5. c4 {[%clk 0:02:59]}  Nf6 {[%clk 0:02:54]} 6. Nc3 {[%clk 0:02:58]}  dxc4 {[%clk 0:02:53]} 7. Bxc4 {[%clk 0:02:58]}  O-O {[%clk 0:02:53]} 8. O-O {[%clk 0:02:58]}  Nc6 {[%clk 0:02:51]} 9. h3 {[%clk 0:02:54]}  h6 {[%clk 0:02:43]} 10. Re1 {[%clk 0:02:54]}  Na5 {[%clk 0:02:41]} 11. Bd3 {[%clk 0:02:53]}  Re8 {[%clk 0:02:38]} 12. Be3 {[%clk 0:02:31]}  Nc6 {[%clk 0:02:25]} 13. a3 {[%clk 0:02:29]}  Be6 {[%clk 0:02:24]} 14. Bc2 {[%clk 0:02:18]}  Ne7 {[%clk 0:02:21]} 15. Ne5 {[%clk 0:02:12]}  Nf5 {[%clk 0:02:12]} 16. Qd3 {[%clk 0:02:06]}  c5 {[%clk 0:01:53]} 17. Rad1 {[%clk 0:01:57]}  Nxe3 {[%clk 0:01:31]} 18. Rxe3 {[%clk 0:01:52]}  cxd4 {[%clk 0:00:33]} 19. Qxd4 {[%clk 0:01:52]}  Bxe5 {[%clk 0:00:32]} 20. Qxe5 {[%clk 0:01:52]}  Qb6 {[%clk 0:00:29]} 21. Qb5 {[%clk 0:01:48]}  Qc7 {[%clk 0:00:25]} 22. Qe5 {[%clk 0:01:40]}  Qxe5 {[%clk 0:00:21]} 23. Rxe5 {[%clk 0:01:39]}  Red8 {[%clk 0:00:21]} 24. Ree1 {[%clk 0:01:30]}  Kf8 {[%clk 0:00:18]} 25. Rxd8+ {[%clk 0:01:20]}  Rxd8 {[%clk 0:00:18]} 26. Rd1 {[%clk 0:01:21]}  Rxd1+ {[%clk 0:00:14]} 27. Bxd1 {[%clk 0:01:21]}  Ke7 {[%clk 0:00:15]} 28. f4 {[%clk 0:01:04]}  Kd6 {[%clk 0:00:11]} 29. Nb5+ {[%clk 0:01:03]}  Kc5 {[%clk 0:00:10]} 30. Be2 {[%clk 0:00:57]}  a6 {[%clk 0:00:10]} 31. Nc3 {[%clk 0:00:57]}  Kd4 {[%clk 0:00:09]} 32. Bf3 {[%clk 0:00:56]}  b6 {[%clk 0:00:07]} 33. Kf2 {[%clk 0:00:54]}  Bc4 {[%clk 0:00:06]} 34. g4 {[%clk 0:00:51]}  g5 {[%clk 0:00:05]} 35. fxg5 {[%clk 0:00:45]}  hxg5 {[%clk 0:00:06]} 36. Be2 {[%clk 0:00:36]}  Bxe2 {[%clk 0:00:05]} 37. Kxe2 {[%clk 0:00:36]}  Ne4 {[%clk 0:00:05]} 38. Na2 {[%clk 0:00:28]}  a5 {[%clk 0:00:04]} 39. Nc1 {[%clk 0:00:28]}  Nc5 {[%clk 0:00:04]} 40. Kd2 {[%clk 0:00:23]}  Ke4 {[%clk 0:00:03]} 41. Ke2 {[%clk 0:00:23]}  Ne6 {[%clk 0:00:03]} 42. b3 {[%clk 0:00:18]}  Nf4+ {[%clk 0:00:04]} 43. Kf2 {[%clk 0:00:17]}  Nxh3+ {[%clk 0:00:05]} 44. Kg3 {[%clk 0:00:17]}  Nf4 {[%clk 0:00:06]} 45. Na2 {[%clk 0:00:15]}  Ke3 {[%clk 0:00:05]} 46. b4 {[%clk 0:00:13]}  Ne2+ {[%clk 0:00:06]} 47. Kg2 {[%clk 0:00:12]}  Kd3 {[%clk 0:00:05]} 48. Kf2 {[%clk 0:00:11]}  f6 {[%clk 0:00:06]} 49. bxa5 {[%clk 0:00:09]}  bxa5 {[%clk 0:00:06]} 50. Kf3 {[%clk 0:00:09]}  Nc3 {[%clk 0:00:05]} 51. Nc1+ {[%clk 0:00:09]}  Kd2 {[%clk 0:00:05]} 52. Nb3+ {[%clk 0:00:09]}  Kd3 {[%clk 0:00:05]} 53. Nxa5 {[%clk 0:00:10]}  Nb5 {[%clk 0:00:05]} 54. a4 {[%clk 0:00:09]}  Nc3 {[%clk 0:00:05]} 55. Nc6 {[%clk 0:00:09]}  Nxa4 {[%clk 0:00:06]} 56. Ne7 {[%clk 0:00:09]}  Nb6 {[%clk 0:00:06]} 57. Ng8 {[%clk 0:00:08]}  Nd7 {[%clk 0:00:06]} 58. Ne7 {[%clk 0:00:08]}  Ne5+ {[%clk 0:00:06]} 59. Kg3 {[%clk 0:00:09]}  Ke4 {[%clk 0:00:06]} 60. Nf5 {[%clk 0:00:09]}  Nd7 {[%clk 0:00:05]} 61. Nd6+ {[%clk 0:00:08]}  Kd5 {[%clk 0:00:04]} 62. Nf5 {[%clk 0:00:09]}  Nc5 {[%clk 0:00:04]} 63. Ne3+ {[%clk 0:00:09]}  Ke4 {[%clk 0:00:04]} 64. Nf5 {[%clk 0:00:09]}  Ne6 {[%clk 0:00:05]} 65. Nd6+ {[%clk 0:00:09]}  Kd5 {[%clk 0:00:05]} 66. Nf5 {[%clk 0:00:09]}  Nd4 {[%clk 0:00:04]} 67. Ne7+ {[%clk 0:00:09]}  Ke4 {[%clk 0:00:04]} 68. Ng8 {[%clk 0:00:08]}  Ke5 {[%clk 0:00:05]} 69. Nh6 {[%clk 0:00:08]}  Ke6 {[%clk 0:00:04]} 70. Kh3 {[%clk 0:00:05]}  Ke7 {[%clk 0:00:05]} 71. Kg3 {[%clk 0:00:04]}  Kf8 {[%clk 0:00:05]} 72. Nf5 {[%clk 0:00:04]}  Nxf5+ {[%clk 0:00:04]} 73. gxf5 {[%clk 0:00:04]}  Ke7 {[%clk 0:00:05]} 74. Kg4 {[%clk 0:00:04]}  Kd6 {[%clk 0:00:06]} 75. Kh5 {[%clk 0:00:04]}  Ke5 {[%clk 0:00:07]} 76. Kg6 {[%clk 0:00:04]}  g4 {[%clk 0:00:08]} 77. Kf7 {[%clk 0:00:04]}  g3 {[%clk 0:00:08]} 0-1


[Site "https://www.chess.com"]